[Event "Titled Tuesday Blitz June 28 Late 2022"]
[White "Howell, David W L"]
[Black "Rustemov, Alexander"]
[WhiteFideId "410608"]
[BlackFideId "4119002"]
[WhiteElo "2559"]
[BlackElo "2735"]
[Result "1-0"]
[Round "08"]
[TimeControl "180+1"]
[Date "2022.06.28"]
[WhiteClock "0:00:04"]
[BlackClock "0:00:02"]

1. g4 {[%clk 0:03:00]}  d5 {[%clk 0:02:58]} 2. g5 {[%clk 0:02:57]}  e5 {[%clk 0:02:57]} 3. Bg2 {[%clk 0:02:55]}  c6 {[%clk 0:02:55]} 4. d4 {[%clk 0:02:52]}  Nd7 {[%clk 0:02:42]} 5. c4 {[%clk 0:02:37]}  Bb4+ {[%clk 0:02:19]} 6. Nc3 {[%clk 0:02:32]}  Ne7 {[%clk 0:02:16]} 7. cxd5 {[%clk 0:02:20]}  Nxd5 {[%clk 0:02:14]} 8. Bxd5 {[%clk 0:02:18]}  cxd5 {[%clk 0:02:05]} 9. dxe5 {[%clk 0:02:09]}  Nxe5 {[%clk 0:02:05]} 10. Qd4 {[%clk 0:02:09]}  Bxc3+ {[%clk 0:01:45]} 11. bxc3 {[%clk 0:02:07]}  f6 {[%clk 0:01:36]} 12. gxf6 {[%clk 0:01:40]}  Qxf6 {[%clk 0:01:37]} 13. Bf4 {[%clk 0:01:39]}  Ng6 {[%clk 0:01:36]} 14. Qxf6 {[%clk 0:01:37]}  gxf6 {[%clk 0:01:37]} 15. Bg3 {[%clk 0:01:30]}  Bf5 {[%clk 0:01:32]} 16. Nf3 {[%clk 0:01:27]}  Be4 {[%clk 0:01:28]} 17. O-O-O {[%clk 0:01:24]}  Kf7 {[%clk 0:01:21]} 18. Rhe1 {[%clk 0:01:23]}  Rac8 {[%clk 0:01:17]} 19. Kb2 {[%clk 0:01:21]}  Bxf3 {[%clk 0:01:16]} 20. exf3 {[%clk 0:01:21]}  Rc5 {[%clk 0:01:16]} 21. c4 {[%clk 0:01:18]}  Rd8 {[%clk 0:01:14]} 22. Re4 {[%clk 0:01:05]}  dxe4 {[%clk 0:01:07]} 23. Rxd8 {[%clk 0:01:06]}  Rxc4 {[%clk 0:01:00]} 24. Rd7+ {[%clk 0:01:05]}  Ke6 {[%clk 0:01:00]} 25. Rxh7 {[%clk 0:01:04]}  Ne7 {[%clk 0:00:48]} 26. Rh4 {[%clk 0:00:57]}  Kd5 {[%clk 0:00:37]} 27. Rf4 {[%clk 0:00:50]}  exf3 {[%clk 0:00:21]} 28. Rxf6 {[%clk 0:00:50]}  Re4 {[%clk 0:00:17]} 29. Rxf3 {[%clk 0:00:47]}  Re2+ {[%clk 0:00:17]} 30. Ka3 {[%clk 0:00:32]}  b5 {[%clk 0:00:15]} 31. Re3 {[%clk 0:00:26]}  Rxe3+ {[%clk 0:00:12]} 32. fxe3 {[%clk 0:00:27]}  Nf5 {[%clk 0:00:12]} 33. Kb4 {[%clk 0:00:22]}  a6 {[%clk 0:00:11]} 34. Bf4 {[%clk 0:00:20]}  Kc6 {[%clk 0:00:05]} 35. Bg5 {[%clk 0:00:18]}  Kb6 {[%clk 0:00:03]} 36. Bd8+ {[%clk 0:00:18]}  Kc6 {[%clk 0:00:03]} 37. Bg5 {[%clk 0:00:19]}  Kb6 {[%clk 0:00:03]} 38. h4 {[%clk 0:00:15]}  a5+ {[%clk 0:00:04]} 39. Kc3 {[%clk 0:00:15]}  Ng3 {[%clk 0:00:04]} 40. Kd4 {[%clk 0:00:13]}  b4 {[%clk 0:00:05]} 41. e4 {[%clk 0:00:11]}  a4 {[%clk 0:00:05]} 42. e5 {[%clk 0:00:08]}  Kc6 {[%clk 0:00:04]} 43. Kc4 {[%clk 0:00:08]}  b3 {[%clk 0:00:05]} 44. axb3 {[%clk 0:00:09]}  axb3 {[%clk 0:00:05]} 45. Kxb3 {[%clk 0:00:06]}  Kd5 {[%clk 0:00:06]} 46. Bf6 {[%clk 0:00:06]}  Nf5 {[%clk 0:00:05]} 47. h5 {[%clk 0:00:06]}  Ke6 {[%clk 0:00:05]} 48. Kc4 {[%clk 0:00:05]}  Ne3+ {[%clk 0:00:04]} 49. Kd4 {[%clk 0:00:05]}  Ng4 {[%clk 0:00:05]} 50. Bg7 {[%clk 0:00:05]}  Kf7 {[%clk 0:00:05]} 51. h6 {[%clk 0:00:04]}  Nh2 {[%clk 0:00:04]} 52. e6+ {[%clk 0:00:02]}  Kg6 {[%clk 0:00:03]} 53. e7 {[%clk 0:00:02]}  Nf3+ {[%clk 0:00:04]} 54. Ke3 {[%clk 0:00:02]}  Nh4 {[%clk 0:00:04]} 55. e8=Q+ {[%clk 0:00:02]}  Kg5 {[%clk 0:00:03]} 56. Qe4 {[%clk 0:00:02]}  Nf5+ {[%clk 0:00:02]} 57. Kf2 {[%clk 0:00:03]}  Nxh6 {[%clk 0:00:01]} 58. Bxh6+ {[%clk 0:00:03]}  Kxh6 {[%clk 0:00:02]} 59. Kg3 {[%clk 0:00:04]} 1-0


[Site "https://www.chess.com"]

[Event "Titled Tuesday Blitz June 28 Late 2022"]
[White "Isajevsky, Anton"]
[Black "Curtis, John"]
[WhiteFideId "4142500"]
[BlackFideId "3200256"]
[WhiteElo "2510"]
[BlackElo "2203"]
[Result "1-0"]
[Round "08"]
[TimeControl "180+1"]
[Date "2022.06.29"]
[WhiteClock "0:00:03"]
[BlackClock "0:00:02"]

1. c4 {[%clk 0:02:25]}  g6 {[%clk 0:02:57]} 2. Nc3 {[%clk 0:02:25]}  Bg7 {[%clk 0:02:57]} 3. Nf3 {[%clk 0:02:25]}  c5 {[%clk 0:02:55]} 4. g3 {[%clk 0:02:23]}  Nc6 {[%clk 0:02:54]} 5. Bg2 {[%clk 0:02:22]}  d6 {[%clk 0:02:54]} 6. O-O {[%clk 0:02:21]}  e5 {[%clk 0:02:55]} 7. Ne1 {[%clk 0:02:20]}  Nge7 {[%clk 0:02:55]} 8. Nc2 {[%clk 0:02:20]}  O-O {[%clk 0:02:54]} 9. Ne3 {[%clk 0:02:20]}  f5 {[%clk 0:02:55]} 10. d3 {[%clk 0:02:17]}  f4 {[%clk 0:02:54]} 11. Ned5 {[%clk 0:02:17]}  g5 {[%clk 0:02:39]} 12. Rb1 {[%clk 0:02:11]}  Nxd5 {[%clk 0:02:22]} 13. Nxd5 {[%clk 0:02:11]}  Nd4 {[%clk 0:01:43]} 14. e3 {[%clk 0:01:04]}  f3 {[%clk 0:01:36]} 15. exd4 {[%clk 0:01:05]}  fxg2 {[%clk 0:01:36]} 16. Kxg2 {[%clk 0:01:05]}  cxd4 {[%clk 0:01:32]} 17. Qh5 {[%clk 0:00:43]}  g4 {[%clk 0:00:56]} 18. Bg5 {[%clk 0:00:39]}  Qd7 {[%clk 0:00:49]} 19. Ne7+ {[%clk 0:00:25]}  Kh8 {[%clk 0:00:41]} 20. Ng6+ {[%clk 0:00:15]}  Kg8 {[%clk 0:00:41]} 21. Nxf8 {[%clk 0:00:15]}  Bxf8 {[%clk 0:00:41]} 22. f3 {[%clk 0:00:14]}  Qc6 {[%clk 0:00:17]} 23. Kg1 {[%clk 0:00:09]}  gxf3 {[%clk 0:00:10]} 24. Rxf3 {[%clk 0:00:09]}  Be6 {[%clk 0:00:06]} 25. Rbf1 {[%clk 0:00:09]}  Bg7 {[%clk 0:00:05]} 26. Bh6 {[%clk 0:00:06]}  e4 {[%clk 0:00:02]} 27. Rf7 {[%clk 0:00:03]} 1-0


[Site "https://www.chess.com"]

[Event "Titled Tuesday Blitz June 28 Late 2022"]
[White "Janturin, Artur"]
[Black "Ladan, Nicholas"]
[WhiteFideId "4130022"]
[BlackFideId "30918855"]
[WhiteElo "2389"]
[BlackElo "2167"]
[Result "0-1"]
[Round "08"]
[TimeControl "180+1"]
[Date "2022.06.29"]
[WhiteClock "0:00:23"]
[BlackClock "0:01:21"]

1. b3 {[%clk 0:03:00]}  d5 {[%clk 0:02:58]} 2. Bb2 {[%clk 0:03:00]}  Bg4 {[%clk 0:02:58]} 3. f3 {[%clk 0:03:00]}  Bf5 {[%clk 0:02:57]} 4. e4 {[%clk 0:02:45]}  Bg6 {[%clk 0:02:56]} 5. exd5 {[%clk 0:02:30]}  Nf6 {[%clk 0:02:54]} 6. Nc3 {[%clk 0:02:26]}  c6 {[%clk 0:02:49]} 7. dxc6 {[%clk 0:02:19]}  Nxc6 {[%clk 0:02:49]} 8. Bc4 {[%clk 0:02:15]}  e6 {[%clk 0:02:49]} 9. Nge2 {[%clk 0:02:14]}  Bc5 {[%clk 0:02:40]} 10. Na4 {[%clk 0:01:35]}  Bd6 {[%clk 0:02:40]} 11. Nac3 {[%clk 0:01:09]}  O-O {[%clk 0:02:38]} 12. d4 {[%clk 0:00:57]}  Nb4 {[%clk 0:02:30]} 13. Rc1 {[%clk 0:00:54]}  Rc8 {[%clk 0:02:10]} 14. O-O {[%clk 0:00:45]}  Nbd5 {[%clk 0:02:09]} 15. Nxd5 {[%clk 0:00:42]}  exd5 {[%clk 0:02:09]} 16. Bd3 {[%clk 0:00:41]}  Nh5 {[%clk 0:01:46]} 17. g3 {[%clk 0:00:38]}  Qg5 {[%clk 0:01:39]} 18. Kg2 {[%clk 0:00:34]}  Bf4 {[%clk 0:01:27]} 19. Ra1 {[%clk 0:00:31]}  Rfe8 {[%clk 0:01:27]} 20. Bxg6 {[%clk 0:00:27]}  hxg6 {[%clk 0:01:24]} 21. Bc1 {[%clk 0:00:25]}  Bxc1 {[%clk 0:01:22]} 22. Rxc1 {[%clk 0:00:23]}  Rxe2+ {[%clk 0:01:21]} 0-1


[Site "https://www.chess.com"]

[Event "Titled Tuesday Blitz June 28 Late 2022"]
[White "Jeet, Jain"]
[Black "Shapiro, Daniel"]
[WhiteFideId "5073022"]
[BlackFideId "2001780"]
[WhiteElo "2055"]
[BlackElo "2277"]
[Result "0-1"]
[Round "08"]
[TimeControl "180+1"]
[Date "2022.06.29"]
[WhiteClock "0:01:22"]
[BlackClock "0:00:32"]

1. d4 {[%clk 0:03:00]}  Nf6 {[%clk 0:02:59]} 2. Nf3 {[%clk 0:03:00]}  b6 {[%clk 0:02:58]} 3. Bf4 {[%clk 0:03:00]}  Bb7 {[%clk 0:02:57]} 4. e3 {[%clk 0:03:01]}  e6 {[%clk 0:02:57]} 5. Nbd2 {[%clk 0:03:01]}  d6 {[%clk 0:02:56]} 6. Bd3 {[%clk 0:03:01]}  Nbd7 {[%clk 0:02:56]} 7. h3 {[%clk 0:03:01]}  Qe7 {[%clk 0:02:56]} 8. Bh2 {[%clk 0:03:01]}  g6 {[%clk 0:02:54]} 9. O-O {[%clk 0:03:01]}  Bg7 {[%clk 0:02:54]} 10. c4 {[%clk 0:03:01]}  O-O {[%clk 0:02:50]} 11. b4 {[%clk 0:03:02]}  c5 {[%clk 0:02:42]} 12. bxc5 {[%clk 0:03:01]}  dxc5 {[%clk 0:02:37]} 13. Rb1 {[%clk 0:02:58]}  Rac8 {[%clk 0:02:30]} 14. Qe2 {[%clk 0:02:58]}  Rfd8 {[%clk 0:02:10]} 15. Rfd1 {[%clk 0:02:58]}  Ne8 {[%clk 0:02:10]} 16. Nb3 {[%clk 0:02:53]}  e5 {[%clk 0:02:00]} 17. d5 {[%clk 0:02:53]}  e4 {[%clk 0:01:51]} 18. Bxe4 {[%clk 0:02:52]}  Qxe4 {[%clk 0:01:50]} 19. Nfd2 {[%clk 0:02:53]}  Qe7 {[%clk 0:01:49]} 20. a4 {[%clk 0:02:53]}  Nd6 {[%clk 0:01:47]} 21. e4 {[%clk 0:02:50]}  f5 {[%clk 0:01:39]} 22. f3 {[%clk 0:02:40]}  Re8 {[%clk 0:01:39]} 23. Re1 {[%clk 0:02:38]}  fxe4 {[%clk 0:01:37]} 24. fxe4 {[%clk 0:02:39]}  Be5 {[%clk 0:01:34]} 25. Bxe5 {[%clk 0:02:38]}  Qxe5 {[%clk 0:01:29]} 26. Qd3 {[%clk 0:02:23]}  Re7 {[%clk 0:01:18]} 27. Re3 {[%clk 0:02:22]}  Rce8 {[%clk 0:01:13]} 28. Rbe1 {[%clk 0:02:22]}  Qf4 {[%clk 0:01:05]} 29. g3 {[%clk 0:02:20]}  Qh6 {[%clk 0:01:02]} 30. Kg2 {[%clk 0:02:09]}  Ne5 {[%clk 0:01:01]} 31. Qc3 {[%clk 0:02:04]}  Bc8 {[%clk 0:00:56]} 32. Rh1 {[%clk 0:02:00]}  Ba6 {[%clk 0:00:55]} 33. a5 {[%clk 0:01:46]}  Ndxc4 {[%clk 0:00:49]} 34. Ree1 {[%clk 0:01:42]}  Nxd2 {[%clk 0:00:44]} 35. Nxd2 {[%clk 0:01:43]}  Rf7 {[%clk 0:00:37]} 36. axb6 {[%clk 0:01:38]}  axb6 {[%clk 0:00:37]} 37. Qa3 {[%clk 0:01:34]}  Bd3 {[%clk 0:00:33]} 38. Rh2 {[%clk 0:01:22]}  Qxd2+ {[%clk 0:00:32]} 0-1


[Site "https://www.chess.com"]

[Event "Titled Tuesday Blitz June 28 Late 2022"]
[White "Kaganskiy, Gleb"]
[Black "Averjanov, Alexey"]
[WhiteFideId "4132025"]
[BlackFideId "14109867"]
[WhiteElo "2165"]
[BlackElo "2659"]
[Result "1-0"]
[Round "08"]
[TimeControl "180+1"]
[Date "2022.06.29"]
[WhiteClock "0:00:06"]
[BlackClock "0:01:29"]

1. a3 {[%clk 0:02:56]}  b6 {[%clk 0:02:59]} 2. b3 {[%clk 0:02:53]}  Bb7 {[%clk 0:02:59]} 3. Bb2 {[%clk 0:02:54]}  Nf6 {[%clk 0:02:59]} 4. Nf3 {[%clk 0:02:54]}  g6 {[%clk 0:02:59]} 5. g3 {[%clk 0:02:54]}  Bg7 {[%clk 0:02:59]} 6. Bg2 {[%clk 0:02:54]}  O-O {[%clk 0:02:59]} 7. O-O {[%clk 0:02:54]}  c5 {[%clk 0:02:58]} 8. c4 {[%clk 0:02:54]}  d5 {[%clk 0:02:57]} 9. cxd5 {[%clk 0:02:53]}  Nxd5 {[%clk 0:02:57]} 10. Bxg7 {[%clk 0:02:52]}  Kxg7 {[%clk 0:02:57]} 11. d4 {[%clk 0:02:53]}  cxd4 {[%clk 0:02:45]} 12. Qxd4+ {[%clk 0:02:50]}  Nf6 {[%clk 0:02:44]} 13. Rd1 {[%clk 0:02:38]}  Nc6 {[%clk 0:02:42]} 14. Qxd8 {[%clk 0:02:36]}  Rfxd8 {[%clk 0:02:43]} 15. Nc3 {[%clk 0:02:28]}  Rxd1+ {[%clk 0:02:40]} 16. Rxd1 {[%clk 0:02:26]}  Rd8 {[%clk 0:02:41]} 17. Ne5 {[%clk 0:02:17]}  Rxd1+ {[%clk 0:02:40]} 18. Nxd1 {[%clk 0:02:18]}  Nxe5 {[%clk 0:02:35]} 19. Bxb7 {[%clk 0:02:19]}  e6 {[%clk 0:02:29]} 20. Ne3 {[%clk 0:02:07]}  Kf8 {[%clk 0:02:27]} 21. Kf1 {[%clk 0:02:03]}  Nfg4 {[%clk 0:02:24]} 22. Nxg4 {[%clk 0:02:00]}  Nxg4 {[%clk 0:02:25]} 23. h3 {[%clk 0:01:59]}  Ne5 {[%clk 0:02:24]} 24. Ke1 {[%clk 0:01:54]}  Ke7 {[%clk 0:02:24]} 25. Kd2 {[%clk 0:01:53]}  Kd6 {[%clk 0:02:23]} 26. Kc3 {[%clk 0:01:53]}  a5 {[%clk 0:02:21]} 27. b4 {[%clk 0:01:49]}  axb4+ {[%clk 0:02:19]} 28. Kxb4 {[%clk 0:01:49]}  g5 {[%clk 0:02:15]} 29. Kb5 {[%clk 0:01:43]}  Kc7 {[%clk 0:02:15]} 30. Be4 {[%clk 0:01:37]}  h6 {[%clk 0:02:13]} 31. Bh7 {[%clk 0:01:30]}  Nc6 {[%clk 0:02:05]} 32. Bg8 {[%clk 0:01:18]}  Nd8 {[%clk 0:01:59]} 33. h4 {[%clk 0:01:11]}  f6 {[%clk 0:01:56]} 34. e3 {[%clk 0:01:01]}  e5 {[%clk 0:01:55]} 35. Bd5 {[%clk 0:00:59]}  Nb7 {[%clk 0:01:48]} 36. Bxb7 {[%clk 0:00:54]}  Kxb7 {[%clk 0:01:49]} 37. hxg5 {[%clk 0:00:46]}  hxg5 {[%clk 0:01:47]} 38. g4 {[%clk 0:00:39]}  Kc7 {[%clk 0:01:39]} 39. Ka6 {[%clk 0:00:13]}  Kc6 {[%clk 0:01:38]} 40. a4 {[%clk 0:00:13]}  e4 {[%clk 0:01:33]} 41. Ka7 {[%clk 0:00:11]}  Kc7 {[%clk 0:01:34]} 42. Ka6 {[%clk 0:00:10]}  Kc6 {[%clk 0:01:34]} 43. Ka7 {[%clk 0:00:11]}  b5 {[%clk 0:01:23]} 44. axb5+ {[%clk 0:00:07]}  Kxb5 {[%clk 0:01:24]} 45. Kb7 {[%clk 0:00:08]}  Kc4 {[%clk 0:01:24]} 46. Kc6 {[%clk 0:00:08]}  Kd3 {[%clk 0:01:25]} 47. Kd5 {[%clk 0:00:08]}  Ke2 {[%clk 0:01:25]} 48. Kxe4 {[%clk 0:00:08]}  Kxf2 {[%clk 0:01:26]} 49. Kf5 {[%clk 0:00:08]}  Kf3 {[%clk 0:01:23]} 50. e4 {[%clk 0:00:08]}  Kg3 {[%clk 0:01:22]} 51. Kxf6 {[%clk 0:00:07]}  Kxg4 {[%clk 0:01:23]} 52. e5 {[%clk 0:00:08]}  Kh3 {[%clk 0:01:23]} 53. e6 {[%clk 0:00:09]}  g4 {[%clk 0:01:24]} 54. e7 {[%clk 0:00:10]}  g3 {[%clk 0:01:25]} 55. e8=Q {[%clk 0:00:11]}  g2 {[%clk 0:01:26]} 56. Qh8+ {[%clk 0:00:11]}  Kg3 {[%clk 0:01:27]} 57. Qg7+ {[%clk 0:00:11]}  Kf2 {[%clk 0:01:27]} 58. Qa7+ {[%clk 0:00:05]}  Kf1 {[%clk 0:01:27]} 59. Qa1+ {[%clk 0:00:05]}  Kf2 {[%clk 0:01:27]} 60. Qb2+ {[%clk 0:00:05]}  Kf1 {[%clk 0:01:28]} 61. Qc1+ {[%clk 0:00:05]}  Kf2 {[%clk 0:01:28]} 62. Qf4+ {[%clk 0:00:05]}  Ke2 {[%clk 0:01:28]} 63. Qg3 {[%clk 0:00:05]}  Kf1 {[%clk 0:01:29]} 64. Qf3+ {[%clk 0:00:06]}  Kg1 {[%clk 0:01:29]} 65. Kg5 {[%clk 0:00:06]}  Kh2 {[%clk 0:01:30]} 66. Qf4+ {[%clk 0:00:06]}  Kh3 {[%clk 0:01:29]} 67. Qh4# {[%clk 0:00:06]} 1-0


[Site "https://www.chess.com"]

[Event "Titled Tuesday Blitz June 28 Late 2022"]
[White "Kamsky, Gata"]
[Black "Yuan, Qingyu"]
[WhiteFideId "2000024"]
[BlackFideId "8609772"]
[WhiteElo "2645"]
[BlackElo "2359"]
[Result "1-0"]
[Round "08"]
[TimeControl "180+1"]
[Date "2022.06.28"]
[WhiteClock "0:01:31"]
[BlackClock "0:00:04"]

1. d4 {[%clk 0:03:00]}  d5 {[%clk 0:02:59]} 2. Bf4 {[%clk 0:02:57]}  Nf6 {[%clk 0:02:59]} 3. e3 {[%clk 0:02:57]}  e6 {[%clk 0:03:00]} 4. Nd2 {[%clk 0:02:55]}  Bd6 {[%clk 0:03:00]} 5. Ngf3 {[%clk 0:02:55]}  O-O {[%clk 0:02:59]} 6. c3 {[%clk 0:02:55]}  c5 {[%clk 0:02:56]} 7. Bd3 {[%clk 0:02:53]}  Bxf4 {[%clk 0:02:54]} 8. exf4 {[%clk 0:02:52]}  cxd4 {[%clk 0:02:50]} 9. Nxd4 {[%clk 0:02:52]}  Qc7 {[%clk 0:02:46]} 10. g3 {[%clk 0:02:50]}  e5 {[%clk 0:02:46]} 11. fxe5 {[%clk 0:02:49]}  Qxe5+ {[%clk 0:02:46]} 12. Qe2 {[%clk 0:02:49]}  Qd6 {[%clk 0:02:36]} 13. O-O {[%clk 0:02:47]}  Re8 {[%clk 0:02:33]} 14. Qf3 {[%clk 0:02:35]}  Bg4 {[%clk 0:02:30]} 15. Qg2 {[%clk 0:02:34]}  Qd7 {[%clk 0:02:28]} 16. Rfe1 {[%clk 0:02:33]}  Nc6 {[%clk 0:02:28]} 17. N2b3 {[%clk 0:02:30]}  Nxd4 {[%clk 0:02:13]} 18. Nxd4 {[%clk 0:02:30]}  a6 {[%clk 0:02:13]} 19. f3 {[%clk 0:02:29]}  Bh5 {[%clk 0:02:09]} 20. Qd2 {[%clk 0:02:24]}  Bg6 {[%clk 0:02:06]} 21. Bf1 {[%clk 0:02:24]}  h6 {[%clk 0:02:02]} 22. Rxe8+ {[%clk 0:02:23]}  Rxe8 {[%clk 0:02:02]} 23. Re1 {[%clk 0:02:23]}  Re7 {[%clk 0:02:00]} 24. Kf2 {[%clk 0:02:20]}  Qd6 {[%clk 0:02:00]} 25. Rxe7 {[%clk 0:02:19]}  Qxe7 {[%clk 0:02:00]} 26. Qe3 {[%clk 0:02:17]}  Qd6 {[%clk 0:01:57]} 27. Nb3 {[%clk 0:02:12]}  Kf8 {[%clk 0:01:49]} 28. Qd4 {[%clk 0:02:06]}  Bf5 {[%clk 0:01:44]} 29. Qc5 {[%clk 0:02:00]}  Ke7 {[%clk 0:01:42]} 30. Ke3 {[%clk 0:01:57]}  Qxc5+ {[%clk 0:01:30]} 31. Nxc5 {[%clk 0:01:57]}  Bc8 {[%clk 0:01:30]} 32. b4 {[%clk 0:01:57]}  Kd6 {[%clk 0:01:30]} 33. Kd4 {[%clk 0:01:56]}  Ne8 {[%clk 0:01:25]} 34. a4 {[%clk 0:01:56]}  Nc7 {[%clk 0:01:24]} 35. a5 {[%clk 0:01:56]}  Ne6+ {[%clk 0:01:22]} 36. Nxe6 {[%clk 0:01:56]}  fxe6 {[%clk 0:01:22]} 37. f4 {[%clk 0:01:56]}  Bd7 {[%clk 0:01:22]} 38. h4 {[%clk 0:01:53]}  Be8 {[%clk 0:01:17]} 39. Bd3 {[%clk 0:01:47]}  Bh5 {[%clk 0:01:15]} 40. c4 {[%clk 0:01:45]}  dxc4 {[%clk 0:00:55]} 41. Be4 {[%clk 0:01:45]}  Kc7 {[%clk 0:00:49]} 42. Kxc4 {[%clk 0:01:44]}  b6 {[%clk 0:00:44]} 43. Kd4 {[%clk 0:01:44]}  Be2 {[%clk 0:00:38]} 44. Ke5 {[%clk 0:01:43]}  Bc4 {[%clk 0:00:38]} 45. g4 {[%clk 0:01:43]}  bxa5 {[%clk 0:00:31]} 46. bxa5 {[%clk 0:01:43]}  Kd7 {[%clk 0:00:32]} 47. g5 {[%clk 0:01:41]}  Ke7 {[%clk 0:00:30]} 48. Kd4 {[%clk 0:01:41]}  Bb5 {[%clk 0:00:20]} 49. Kc5 {[%clk 0:01:41]}  Kd7 {[%clk 0:00:12]} 50. Kb6 {[%clk 0:01:34]}  Kc8 {[%clk 0:00:11]} 51. Bb7+ {[%clk 0:01:33]}  Kd7 {[%clk 0:00:11]} 52. Bxa6 {[%clk 0:01:30]}  Bxa6 {[%clk 0:00:12]} 53. Kxa6 {[%clk 0:01:31]}  Kc6 {[%clk 0:00:04]} 54. gxh6 {[%clk 0:01:31]}  gxh6 {[%clk 0:00:05]} 55. h5 {[%clk 0:01:31]}  Kd5 {[%clk 0:00:01]} 56. Kb6 {[%clk 0:01:31]}  Ke4 {[%clk 0:00:02]} 57. a6 {[%clk 0:01:31]}  Kxf4 {[%clk 0:00:02]} 58. a7 {[%clk 0:01:32]}  Kg5 {[%clk 0:00:03]} 59. a8=Q {[%clk 0:01:32]}  Kxh5 {[%clk 0:00:04]} 60. Qg2 {[%clk 0:01:31]}  e5 {[%clk 0:00:04]} 61. Kc5 {[%clk 0:01:31]} 1-0


[Site "https://www.chess.com"]

[Event "Titled Tuesday Blitz June 28 Late 2022"]
[White "Keymer, Vincent"]
[Black "Maghsoodloo, Parham"]
[WhiteFideId "12940690"]
[BlackFideId "12539929"]
[WhiteElo "2548"]
[BlackElo "2607"]
[Result "0-1"]
[Round "08"]
[TimeControl "180+1"]
[Date "2022.06.28"]
[WhiteClock "0:00:03"]
[BlackClock "0:00:07"]

1. Nf3 {[%clk 0:03:00]}  d5 {[%clk 0:02:58]} 2. e3 {[%clk 0:03:01]}  Nd7 {[%clk 0:02:57]} 3. c4 {[%clk 0:03:01]}  e6 {[%clk 0:02:58]} 4. Nc3 {[%clk 0:03:01]}  Nb6 {[%clk 0:02:56]} 5. b3 {[%clk 0:03:00]}  Nf6 {[%clk 0:02:55]} 6. Bb2 {[%clk 0:03:01]}  a5 {[%clk 0:02:55]} 7. d4 {[%clk 0:02:49]}  c6 {[%clk 0:02:48]} 8. Bd3 {[%clk 0:02:48]}  a4 {[%clk 0:02:37]} 9. c5 {[%clk 0:02:47]}  a3 {[%clk 0:02:38]} 10. Bc1 {[%clk 0:02:48]}  Nbd7 {[%clk 0:02:38]} 11. O-O {[%clk 0:02:43]}  e5 {[%clk 0:02:23]} 12. dxe5 {[%clk 0:02:28]}  Ng4 {[%clk 0:02:23]} 13. e4 {[%clk 0:02:29]}  d4 {[%clk 0:02:23]} 14. e6 {[%clk 0:02:11]}  fxe6 {[%clk 0:02:13]} 15. Ne2 {[%clk 0:02:01]}  Bxc5 {[%clk 0:01:48]} 16. h3 {[%clk 0:01:53]}  Nge5 {[%clk 0:01:46]} 17. Nfxd4 {[%clk 0:01:46]}  Nf6 {[%clk 0:01:02]} 18. Bc2 {[%clk 0:01:41]}  Nf7 {[%clk 0:00:53]} 19. Be3 {[%clk 0:01:36]}  Qe7 {[%clk 0:00:48]} 20. f4 {[%clk 0:01:02]}  e5 {[%clk 0:00:48]} 21. fxe5 {[%clk 0:01:02]}  Nxe5 {[%clk 0:00:49]} 22. b4 {[%clk 0:01:02]}  Bxb4 {[%clk 0:00:40]} 23. Bb3 {[%clk 0:01:02]}  Bd7 {[%clk 0:00:20]} 24. Nf5 {[%clk 0:00:43]}  Bxf5 {[%clk 0:00:19]} 25. exf5 {[%clk 0:00:40]}  Neg4 {[%clk 0:00:09]} 26. Bb6 {[%clk 0:00:12]}  Ne3 {[%clk 0:00:09]} 27. Qd3 {[%clk 0:00:12]}  Nxf1 {[%clk 0:00:09]} 28. Rxf1 {[%clk 0:00:13]}  Bc5+ {[%clk 0:00:09]} 29. Bxc5 {[%clk 0:00:13]}  Qxc5+ {[%clk 0:00:10]} 30. Kh1 {[%clk 0:00:12]}  Nd5 {[%clk 0:00:09]} 31. Nf4 {[%clk 0:00:07]}  O-O {[%clk 0:00:09]} 32. Ne6 {[%clk 0:00:07]}  Qd6 {[%clk 0:00:07]} 33. Nxf8 {[%clk 0:00:06]}  Rxf8 {[%clk 0:00:08]} 34. Rd1 {[%clk 0:00:06]}  Rd8 {[%clk 0:00:08]} 35. Qe4 {[%clk 0:00:06]}  Kh8 {[%clk 0:00:08]} 36. Rd3 {[%clk 0:00:06]}  h6 {[%clk 0:00:08]} 37. Rg3 {[%clk 0:00:04]}  Qxg3 {[%clk 0:00:08]} 38. Bc2 {[%clk 0:00:03]}  Nf6 {[%clk 0:00:07]} 39. Qe7 {[%clk 0:00:03]}  Qd6 {[%clk 0:00:07]} 40. Qf7 {[%clk 0:00:03]}  Re8 {[%clk 0:00:07]} 41. Qg6 {[%clk 0:00:03]}  Re1# {[%clk 0:00:07]} 0-1


[Site "https://www.chess.com"]

[Event "Titled Tuesday Blitz June 28 Late 2022"]
[White "Khismatullin, Denis"]
[Black "Katz, Alexander"]
[WhiteFideId "4142578"]
[BlackFideId "2039796"]
[WhiteElo "2543"]
[BlackElo "2371"]
[Result "0-1"]
[Round "08"]
[TimeControl "180+1"]
[Date "2022.06.28"]
[WhiteClock "0:00:27"]
[BlackClock "0:00:16"]

1. Nf3 {[%clk 0:03:00]}  Nf6 {[%clk 0:03:00]} 2. c4 {[%clk 0:03:01]}  c6 {[%clk 0:02:59]} 3. Nc3 {[%clk 0:03:00]}  d5 {[%clk 0:03:00]} 4. e3 {[%clk 0:03:01]}  Bf5 {[%clk 0:02:58]} 5. cxd5 {[%clk 0:03:01]}  cxd5 {[%clk 0:02:58]} 6. Qb3 {[%clk 0:03:01]}  Bc8 {[%clk 0:02:58]} 7. d4 {[%clk 0:03:01]}  e6 {[%clk 0:02:57]} 8. Ne5 {[%clk 0:03:01]}  Bd6 {[%clk 0:02:57]} 9. Bd2 {[%clk 0:03:02]}  O-O {[%clk 0:02:56]} 10. Rc1 {[%clk 0:03:01]}  Nbd7 {[%clk 0:02:38]} 11. f4 {[%clk 0:02:58]}  Nb6 {[%clk 0:02:34]} 12. Bd3 {[%clk 0:02:57]}  Bd7 {[%clk 0:02:33]} 13. O-O {[%clk 0:02:51]}  Rc8 {[%clk 0:02:33]} 14. a4 {[%clk 0:02:51]}  Rc7 {[%clk 0:02:03]} 15. h3 {[%clk 0:01:50]}  Qe7 {[%clk 0:01:57]} 16. a5 {[%clk 0:01:49]}  Na8 {[%clk 0:01:50]} 17. Nb5 {[%clk 0:01:36]}  Bxb5 {[%clk 0:01:50]} 18. Qxb5 {[%clk 0:01:37]}  Rfc8 {[%clk 0:01:48]} 19. Rxc7 {[%clk 0:01:37]}  Rxc7 {[%clk 0:01:46]} 20. g4 {[%clk 0:01:35]}  a6 {[%clk 0:01:39]} 21. Qb3 {[%clk 0:01:29]}  Bxe5 {[%clk 0:01:24]} 22. fxe5 {[%clk 0:01:23]}  Ne4 {[%clk 0:01:24]} 23. Bxe4 {[%clk 0:01:22]}  dxe4 {[%clk 0:01:25]} 24. Bb4 {[%clk 0:01:18]}  Qh4 {[%clk 0:01:24]} 25. Kg2 {[%clk 0:01:19]}  h5 {[%clk 0:01:19]} 26. Bd6 {[%clk 0:01:06]}  hxg4 {[%clk 0:01:14]} 27. Bxc7 {[%clk 0:01:06]}  Qxh3+ {[%clk 0:00:58]} 28. Kf2 {[%clk 0:01:05]}  Nxc7 {[%clk 0:00:53]} 29. Qd1 {[%clk 0:00:32]}  g3+ {[%clk 0:00:33]} 30. Ke2 {[%clk 0:00:32]}  g2 {[%clk 0:00:32]} 31. Rg1 {[%clk 0:00:32]}  Nd5 {[%clk 0:00:32]} 32. Qd2 {[%clk 0:00:25]}  Qf3+ {[%clk 0:00:31]} 33. Ke1 {[%clk 0:00:26]}  Nxe3 {[%clk 0:00:29]} 34. Qe2 {[%clk 0:00:26]}  Qf1+ {[%clk 0:00:15]} 35. Rxf1 {[%clk 0:00:26]}  gxf1=Q+ {[%clk 0:00:16]} 36. Qxf1 {[%clk 0:00:26]}  Nxf1 {[%clk 0:00:16]} 37. Kxf1 {[%clk 0:00:27]}  f5 {[%clk 0:00:16]} 0-1


[Site "https://www.chess.com"]